fUSD/lending_fUSD_20250113
["ID","MTS","AMOUNT","RATE_DAILY","PERIOD"]
[348849153,1736807448693,-1950.0,0.0001,2]
[348849154,1736807448710,-52936.4053192,0.0001,2]
[348849155,1736807448820,-325.7472,0.0001,2]
[348849156,1736807451626,-500.0,9.894e-05,2]
[348849157,1736807451636,-769.26404567,0.0001,2]
[348849158,1736807451648,-10082.56791693,0.0001,2]
[348849159,1736807451659,-95890.11966293,0.0001,2]
[348849160,1736807451671,-955.59573849,0.0001,2]
[348849161,1736807451686,-500.0,0.0001,2]
[348849162,1736807451698,-221114.11305562,0.0001,2]
[348849163,1736807451980,-1940.3477441,0.0001,2]
[348849164,1736807452013,-583062.69585823,0.0001,2]
[348849165,1736807452040,-50961.63863776,0.0001,2]
[348849166,1736807452052,-18997.7196,0.0001,2]
[348849167,1736807467224,500.0,0.00023,120]
[348849168,1736807467314,500.0,0.00023,120]
[348849169,1736807467730,500.0,0.00023,120]
[348849170,1736807467778,500.0,0.00023,120]
[348849171,1736807468215,500.0,0.00023,120]
[348849172,1736807468262,500.0,0.00023,120]
[348849173,1736807468680,500.0,0.00023,120]
[348849174,1736807469130,500.0,0.00023,120]
[348849175,1736807469161,500.0,0.00023,120]
[348849176,1736807469585,500.0,0.00023,120]
[348849177,1736807469616,609.78040298,0.00023,120]
[348849178,1736807470065,500.0,0.00023,120]
[348849179,1736807470568,500.0,0.00023,120]
[348849180,1736807472137,500.0,0.00023,120]
[348849181,1736807472247,500.0,0.00023,120]
[348849182,1736807472634,500.0,0.00023,120]
[348849183,1736807473077,500.0,0.00023,120]
[348849184,1736807473534,500.0,0.00023,120]
[348849185,1736807473990,500.0,0.00023,120]
[348849186,1736807474447,521.35150927,0.00023,120]
[348849188,1736807593171,500.0,0.00021933,120]
[348849189,1736807593625,500.0,0.00022673,120]
[348849190,1736807604593,2000.0,0.00022514,120]
[348849191,1736807617288,500.0,0.00022612,120]
[348849192,1736807648793,200.0,0.00022338,120]
[348849193,1736807743515,4000.0,0.00023,120]
[348849194,1736807755327,4000.0,0.00023,120]
[348849195,1736807765620,4000.0,0.00023,120]
[348849196,1736807795717,4000.0,0.00023,120]
[348849197,1736807891452,39957.0,0.00023,120]
[348849198,1736807904373,1000.0,0.00021917,120]
[348849199,1736807904651,1000.0,0.00021917,120]
[348849200,1736807904926,950.81405604,0.00021917,120]
[348849201,1736807930923,5050.0,0.00018,30]
[348849202,1736807972333,5050.0,0.00012,29]
[348849203,1736807990005,5050.0,0.00012,28]
[348849204,1736808019036,974.496899,0.00023,120]
[348849205,1736808061524,5050.0,0.00012,26]
[348849206,1736808078113,5050.0,0.00012,25]
[348849207,1736808100558,5050.0,0.00012,24]
[348849208,1736808191881,500.0,0.00022027,120]
[348849209,1736808192309,500.0,0.00022908,120]
[348849210,1736808201948,2000.0,0.0002244,120]
[348849211,1736808202298,2000.0,0.00022999,120]
[348849212,1736808209198,917.31,8.219e-05,2]
[348849213,1736808213371,500.0,0.00022481,120]
[348849214,1736808243168,200.0,0.00022925,120]
[348849381,1736808631563,-911.770685,8.606e-05,2]
[348849382,1736808631573,-250.0,8.628e-05,2]
[348849383,1736808631584,-767.7,8.65e-05,2]
[348849384,1736808631595,-1000.0,8.684e-05,2]
[348849385,1736808631605,-200.0,8.766e-05,2]
[348849386,1736808631615,-250.0,8.766e-05,2]
[348849387,1736808631625,-208.69374742,8.766e-05,2]
[348849388,1736808631634,-250.0,8.834e-05,2]
[348849389,1736808631643,-110.3153679,8.834e-05,2]
[348849390,1736808631655,-52.7346321,8.834e-05,2]
[348849391,1736808631664,-150.0,8.849e-05,2]
[348849392,1736808631674,-300.0,8.868e-05,2]
[348849393,1736808631684,-23900.0,8.869e-05,2]
[348849394,1736808631694,-388.79,8.891e-05,2]
[348849395,1736808631704,-1500.0,8.907e-05,2]
[348849396,1736808631713,-206.52,8.958e-05,2]
[348849397,1736808631723,-7930.79042391,9.193e-05,2]
[348849398,1736808631743,-536.92957609,9.193e-05,2]
[348849399,1736808631753,-166.27,9.203e-05,2]
[348849400,1736808631762,-210.683,9.5e-05,2]
[348849401,1736808631772,-900.0,9.5e-05,3]
[348849402,1736808631781,-396.0,9.504e-05,2]
[348849403,1736808631791,-226.99742391,9.589e-05,2]
[348849404,1736808631825,-193.59257609,9.589e-05,2]
[348849405,1736808631835,-1800.0,9.6e-05,3]
[348849406,1736808631845,-2700.0,9.7e-05,3]
[348849407,1736808631855,-1000.0,9.7e-05,2]
[348849408,1736808631865,-420.0,9.755e-05,2]
[348849409,1736808631874,-1000.0,9.769e-05,2]
[348849410,1736808631884,-3600.0,9.8e-05,3]
[348849411,1736808631893,-150.0,9.8e-05,2]
[348849412,1736808631903,-1000.0,9.8e-05,2]
[348849413,1736808631913,-500.0,9.893e-05,2]
[348849414,1736808631923,-500.0,9.893e-05,2]
[348849415,1736808631932,-500.0,9.893e-05,2]
[348849416,1736808631942,-500.0,9.893e-05,2]
[348849417,1736808631951,-500.0,9.893e-05,2]
[348849418,1736808631961,-500.0,9.893e-05,2]
[348849419,1736808631970,-500.0,9.893e-05,2]
[348849420,1736808631980,-500.0,9.893e-05,2]
[348849421,1736808631989,-500.0,9.893e-05,2]
[348849422,1736808631999,-500.0,9.893e-05,2]
[348849423,1736808632009,-500.0,9.893e-05,2]
[348849424,1736808632018,-500.0,9.893e-05,2]
[348849425,1736808632027,-500.0,9.893e-05,2]
[348849426,1736808632037,-500.0,9.893e-05,2]
[348849427,1736808632046,-500.0,9.893e-05,2]
[348849428,1736808632055,-500.0,9.893e-05,2]
[348849429,1736808632066,-500.0,9.893e-05,2]
[348849430,1736808632075,-500.0,9.893e-05,2]
[348849431,1736808632085,-500.0,9.893e-05,2]
[348849432,1736808632095,-500.0,9.893e-05,2]
[348849433,1736808632105,-506.36823557,9.893e-05,2]
[348849434,1736808632117,-503.22697016,9.893e-05,2]
[348849435,1736808632126,-500.0,9.893e-05,2]
[348849436,1736808632136,-504.70116171,9.893e-05,2]
[348849437,1736808632145,-500.0,9.893e-05,2]
[348849438,1736808632158,-500.0,9.893e-05,2]
[348849439,1736808632168,-500.0,9.893e-05,2]
[348849440,1736808632178,-628.40695742,9.893e-05,2]
[348849441,1736808632187,-500.0,9.893e-05,2]
[348849442,1736808632198,-500.0,9.893e-05,2]
[348849443,1736808632208,-500.0,9.893e-05,2]
[348849444,1736808632217,-500.0,9.893e-05,2]
[348849445,1736808632226,-500.0,9.893e-05,2]
[348849446,1736808632237,-180.36974707,9.893e-05,2]
[348849447,1736808632246,-500.0,9.893e-05,2]
[348849449,1736808632255,-349.3100346,9.893e-05,2]
[348849451,1736808632265,-500.0,9.893e-05,2]
[348849453,1736808632274,-500.0,9.893e-05,2]
[348849456,1736808632284,-370.51784183,9.893e-05,2]
[348849458,1736808632293,-500.0,9.893e-05,2]
[348849460,1736808632302,-500.0,9.893e-05,2]
[348849462,1736808632311,-500.0,9.893e-05,2]
[348849465,1736808632321,-500.0,9.893e-05,2]
[348849468,1736808632331,-500.0,9.893e-05,2]
[348849471,1736808632340,-500.0,9.893e-05,2]
[348849473,1736808632350,-500.0,9.893e-05,2]
[348849476,1736808632359,-546.21,9.893e-05,2]
[348849479,1736808632368,-500.0,9.893e-05,2]
[348849482,1736808632377,-500.0,9.893e-05,2]
[348849484,1736808632386,-500.0,9.893e-05,2]
[348849487,1736808632395,-2342.23,9.893e-05,2]
[348849490,1736808632404,-500.0,9.893e-05,2]
[348849492,1736808632413,-1327.53,9.893e-05,2]
[348849494,1736808632423,-500.0,9.893e-05,2]
[348849495,1736808632431,-590.20710945,9.893e-05,2]
[348849496,1736808632441,-500.0,9.893e-05,2]
[348849497,1736808632450,-500.0,9.893e-05,2]
[348849498,1736808632459,-500.0,9.893e-05,2]
[348849499,1736808632468,-991.30889166,9.893e-05,2]
[348849500,1736808632480,-1416.00110834,9.893e-05,2]
[348849501,1736808632490,-509.10541565,9.893e-05,2]
[348849502,1736808632499,-649.75232794,9.893e-05,2]
[348849503,1736808632508,-500.0,9.893e-05,2]
[348849504,1736808632517,-500.0,9.893e-05,2]
[348849505,1736808632527,-511.4593028,9.893e-05,2]
[348849506,1736808632535,-6650.96,9.893e-05,2]
[348849507,1736808632544,-500.0,9.893e-05,2]
[348849508,1736808632553,-500.0,9.893e-05,2]
[348849509,1736808632562,-500.0,9.893e-05,2]
[348849510,1736808632572,-543.89193778,9.893e-05,2]
[348849511,1736808632581,-513.49548214,9.893e-05,2]
[348849512,1736808632591,-500.0,9.893e-05,2]
[348849513,1736808632600,-500.0,9.893e-05,2]
[348849514,1736808632608,-181.71366041,9.893e-05,2]
[348849515,1736808632617,-500.0,9.893e-05,2]
[348849516,1736808632626,-877.16,9.893e-05,2]
[348849518,1736808632635,-500.0,9.893e-05,2]
[348849520,1736808632644,-500.0,9.893e-05,2]
[348849522,1736808632653,-500.0,9.893e-05,2]
[348849524,1736808632663,-1013.16,9.893e-05,2]
[348849526,1736808632672,-500.0,9.893e-05,2]
[348849528,1736808632682,-500.0,9.893e-05,2]
[348849529,1736808632691,-327.73404764,9.893e-05,2]
[348849530,1736808632701,-500.0,9.893e-05,2]
[348849531,1736808632710,-500.0,9.893e-05,2]
[348849532,1736808632719,-500.0,9.893e-05,2]
[348849533,1736808632729,-500.0,9.893e-05,2]
[348849534,1736808632738,-500.0,9.893e-05,2]
[348849535,1736808632748,-2485.46,9.893e-05,2]
[348849536,1736808632757,-500.0,9.893e-05,2]
[348849537,1736808632767,-665.13,9.893e-05,2]
[348849538,1736808632778,-500.0,9.893e-05,2]
[348849539,1736808632787,-500.0,9.893e-05,2]
[348849540,1736808632797,-2612.07,9.893e-05,2]
[348849541,1736808632807,-500.0,9.893e-05,2]
[348849542,1736808632817,-500.0,9.893e-05,2]
[348849543,1736808632827,-500.0,9.893e-05,2]
[348849544,1736808632836,-500.0,9.893e-05,2]
[348849545,1736808632846,-3431.38,9.893e-05,2]
[348849546,1736808632855,-500.0,9.893e-05,2]
[348849547,1736808632865,-500.0,9.893e-05,2]
[348849548,1736808632874,-500.0,9.893e-05,2]
[348849549,1736808632884,-500.0,9.893e-05,2]
[348849550,1736808632893,-500.0,9.893e-05,2]
[348849551,1736808632903,-7356.09,9.893e-05,2]
[348849552,1736808632912,-500.0,9.893e-05,2]
[348849553,1736808632922,-1707.85,9.893e-05,2]
[348849554,1736808632931,-500.0,9.893e-05,2]
[348849555,1736808632942,-500.0,9.893e-05,2]
[348849556,1736808632952,-500.0,9.893e-05,2]
[348849557,1736808632961,-500.0,9.893e-05,2]
[348849558,1736808632971,-500.0,9.893e-05,2]
[348849559,1736808632981,-1256.64,9.893e-05,2]
[348849560,1736808632991,-4174.44,9.893e-05,2]
[348849561,1736808633000,-500.0,9.893e-05,2]
[348849562,1736808633010,-500.0,9.893e-05,2]
[348849563,1736808633019,-501.28719864,9.893e-05,2]
[348849564,1736808633029,-500.0,9.893e-05,2]
[348849565,1736808633038,-3013.63,9.893e-05,2]
[348849566,1736808633048,-500.0,9.893e-05,2]
[348849567,1736808633057,-500.0,9.893e-05,2]
[348849568,1736808633067,-1230.28,9.893e-05,2]
[348849569,1736808633078,-500.0,9.893e-05,2]
[348849570,1736808633088,-500.0,9.893e-05,2]
[348849571,1736808633097,-500.0,9.893e-05,2]
[348849572,1736808633107,-506.62061393,9.893e-05,2]
[348849573,1736808633116,-500.0,9.893e-05,2]
[348849574,1736808633125,-500.0,9.893e-05,2]
[348849575,1736808633136,-582.91,9.893e-05,2]
[348849576,1736808633147,-500.0,9.893e-05,2]
[348849577,1736808633159,-500.0,9.893e-05,2]
[348849578,1736808633168,-500.0,9.893e-05,2]
[348849579,1736808633178,-1031.77,9.893e-05,2]
[348849580,1736808633188,-500.0,9.893e-05,2]
[348849581,1736808633198,-500.0,9.893e-05,2]
[348849582,1736808633208,-500.0,9.893e-05,2]
[348849583,1736808633217,-889.01,9.893e-05,2]
[348849584,1736808633228,-522.19,9.893e-05,2]
[348849585,1736808633238,-500.0,9.893e-05,2]
[348849586,1736808633248,-500.0,9.893e-05,2]
[348849587,1736808633256,-500.0,9.893e-05,2]
[348849588,1736808633266,-500.0,9.893e-05,2]
[348849589,1736808633275,-979.68,9.893e-05,2]
[348849590,1736808633285,-500.0,9.893e-05,2]
[348849591,1736808633294,-500.0,9.893e-05,2]
[348849592,1736808633303,-500.0,9.893e-05,2]
[348849593,1736808633313,-1826.06,9.893e-05,2]
[348849594,1736808633323,-1749.73,9.893e-05,2]
[348849595,1736808633332,-500.0,9.893e-05,2]
[348849596,1736808633342,-500.0,9.893e-05,2]
[348849597,1736808633351,-500.0,9.893e-05,2]
[348849598,1736808633361,-500.0,9.893e-05,2]
[348849599,1736808633370,-500.0,9.893e-05,2]
[348849600,1736808633380,-500.0,9.893e-05,2]
[348849601,1736808633389,-1730.62,9.893e-05,2]
[348849602,1736808633398,-912.21,9.893e-05,2]
[348849603,1736808633407,-500.0,9.893e-05,2]
[348849604,1736808633417,-500.0,9.893e-05,2]
[348849605,1736808633427,-500.0,9.894e-05,2]
[348849606,1736808633437,-500.0,9.894e-05,2]
[348849607,1736808633681,-500.0,9.894e-05,2]
[348849608,1736808633694,-500.0,9.894e-05,2]
[348849609,1736808633704,-500.0,9.894e-05,2]
[348849610,1736808633714,-500.0,9.894e-05,2]
[348849611,1736808633724,-500.0,9.894e-05,2]
[348849612,1736808633733,-500.0,9.894e-05,2]
[348849613,1736808633742,-500.0,9.894e-05,2]
[348849614,1736808633752,-500.0,9.894e-05,2]
[348849615,1736808633762,-344.51009736,9.894e-05,2]
[348849616,1736808633771,-500.0,9.894e-05,2]
[348849617,1736808633781,-500.0,9.894e-05,2]
[348849618,1736808633790,-500.0,9.894e-05,2]
[348849619,1736808633799,-500.0,9.894e-05,2]
[348849620,1736808633809,-500.0,9.894e-05,2]
[348849621,1736808633818,-500.0,9.894e-05,2]
[348849622,1736808633828,-500.0,9.894e-05,2]
[348849623,1736808633837,-500.0,9.894e-05,2]
[348849624,1736808633847,-500.0,9.894e-05,2]
[348849625,1736808633857,-500.0,9.894e-05,2]
[348849626,1736808633867,-501.95859157,9.894e-05,2]
[348849627,1736808633877,-500.0,9.894e-05,2]
[348849628,1736808633887,-500.0,9.894e-05,2]
[348849629,1736808633896,-500.0,9.894e-05,2]
[348849630,1736808633906,-500.0,9.894e-05,2]
[348849631,1736808633916,-500.0,9.894e-05,2]
[348849632,1736808633925,-500.0,9.894e-05,2]
[348849633,1736808633935,-500.0,9.894e-05,2]
[348849634,1736808633945,-500.0,9.894e-05,2]
[348849635,1736808633955,-500.0,9.894e-05,2]
[348849636,1736808633965,-502.95723767,9.894e-05,2]
[348849637,1736808633974,-500.0,9.894e-05,2]
[348849638,1736808633984,-500.0,9.894e-05,2]
[348849639,1736808633994,-500.0,9.894e-05,2]
[348849640,1736808634004,-390.74148734,9.894e-05,2]
[348849641,1736808634014,-500.0,9.894e-05,2]
[348849642,1736808634023,-563.6,9.894e-05,2]
[348849643,1736808634033,-500.0,9.894e-05,2]
[348849644,1736808634043,-226.11923195,9.894e-05,2]
[348849645,1736808634052,-500.0,9.894e-05,2]
[348849646,1736808634062,-340.95690895,9.894e-05,2]
[348849647,1736808634072,-500.0,9.894e-05,2]
[348849648,1736808634082,-500.0,9.894e-05,2]
[348849649,1736808634092,-500.0,9.894e-05,2]
[348849650,1736808634101,-296.09675034,9.894e-05,2]
[348849651,1736808634111,-500.0,9.894e-05,2]
[348849652,1736808634122,-500.0,9.894e-05,2]
[348849653,1736808634132,-500.0,9.894e-05,2]
[348849654,1736808634142,-500.0,9.894e-05,2]
[348849655,1736808634154,-500.0,9.894e-05,2]
[348849656,1736808634164,-500.0,9.894e-05,2]
[348849657,1736808634174,-500.0,9.894e-05,2]
[348849658,1736808634184,-500.0,9.894e-05,2]
[348849659,1736808634196,-500.0,9.894e-05,2]
[348849660,1736808634206,-500.0,9.894e-05,2]
[348849661,1736808634215,-500.0,9.894e-05,2]
[348849662,1736808634226,-500.0,9.894e-05,2]
[348849663,1736808634235,-500.0,9.894e-05,2]
[348849664,1736808634246,-500.0,9.894e-05,2]
[348849665,1736808634256,-500.0,9.894e-05,2]
[348849666,1736808634265,-618.68613004,9.894e-05,2]
[348849667,1736808634275,-500.0,9.894e-05,2]
[348849668,1736808634286,-500.0,9.894e-05,2]
[348849669,1736808634295,-500.0,9.894e-05,2]
[348849670,1736808634305,-224.32949397,9.894e-05,2]
[348849671,1736808634314,-500.0,9.894e-05,2]
[348849672,1736808634324,-500.0,9.894e-05,2]
[348849673,1736808634333,-161.24793689,9.894e-05,2]
[348849674,1736808634343,-500.0,9.894e-05,2]
[348849675,1736808634352,-500.0,9.894e-05,2]
[348849676,1736808634362,-500.0,9.894e-05,2]
[348849677,1736808634372,-500.0,9.894e-05,2]
[348849678,1736808634381,-500.0,9.894e-05,2]
[348849679,1736808634391,-501.73826115,9.894e-05,2]
[348849680,1736808634401,-429.23345938,9.894e-05,2]
[348849681,1736808634411,-500.0,9.894e-05,2]
[348849682,1736808634420,-500.0,9.894e-05,2]
[348849683,1736808634430,-500.0,9.894e-05,2]
[348849684,1736808634439,-500.0,9.894e-05,2]
[348849685,1736808634448,-562.07,9.894e-05,2]
[348849686,1736808634457,-500.0,9.894e-05,2]
[348849687,1736808634467,-500.0,9.894e-05,2]
[348849688,1736808634476,-500.0,9.894e-05,2]
[348849689,1736808634487,-153.01538432,9.894e-05,2]
[348849690,1736808634496,-500.0,9.894e-05,2]
[348849691,1736808634506,-500.0,9.894e-05,2]
[348849692,1736808634516,-500.0,9.894e-05,2]
[348849693,1736808634525,-500.0,9.894e-05,2]
[348849694,1736808634535,-500.0,9.894e-05,2]
[348849695,1736808634544,-500.0,9.894e-05,2]
[348849696,1736808634553,-500.0,9.894e-05,2]
[348849697,1736808634563,-500.0,9.894e-05,2]
[348849698,1736808634573,-500.0,9.894e-05,2]
[348849699,1736808634582,-500.0,9.894e-05,2]
[348849700,1736808634592,-500.0,9.894e-05,2]
[348849701,1736808634602,-500.0,9.894e-05,2]
[348849702,1736808634612,-500.0,9.894e-05,2]
[348849703,1736808634621,-878.33,9.894e-05,2]
[348849704,1736808634630,-500.0,9.894e-05,2]
[348849705,1736808634640,-500.0,9.894e-05,2]
[348849706,1736808634649,-500.0,9.894e-05,2]
[348849707,1736808634659,-500.0,9.894e-05,2]
[348849708,1736808634668,-500.0,9.894e-05,2]
[348849709,1736808634678,-500.0,9.894e-05,2]
[348849710,1736808634687,-500.0,9.894e-05,2]
[348849711,1736808634697,-500.0,9.894e-05,2]
[348849712,1736808634707,-500.0,9.894e-05,2]
[348849713,1736808634717,-500.0,9.894e-05,2]
[348849714,1736808634727,-500.0,9.894e-05,2]
[348849715,1736808634737,-500.0,9.894e-05,2]
[348849716,1736808634747,-560.25,9.894e-05,2]
[348849717,1736808634756,-500.0,9.894e-05,2]
[348849718,1736808634766,-500.0,9.894e-05,2]
[348849719,1736808634776,-500.0,9.894e-05,2]
[348849720,1736808634786,-500.92641991,9.894e-05,2]
[348849721,1736808634796,-500.0,9.894e-05,2]
[348849722,1736808634808,-500.0,9.894e-05,2]
[348849723,1736808634819,-500.0,9.894e-05,2]
[348849724,1736808634829,-500.0,9.894e-05,2]
[348849725,1736808634837,-500.0,9.894e-05,2]
[348849726,1736808634847,-500.0,9.894e-05,2]
[348849727,1736808634857,-500.0,9.894e-05,2]
[348849728,1736808634867,-500.0,9.894e-05,2]
[348849729,1736808634876,-500.0,9.894e-05,2]
[348849730,1736808634886,-500.0,9.894e-05,2]
[348849731,1736808634895,-500.0,9.894e-05,2]
[348849732,1736808634905,-500.0,9.894e-05,2]
[348849733,1736808634915,-500.0,9.894e-05,2]
[348849734,1736808634925,-500.0,9.894e-05,2]
[348849735,1736808634935,-500.0,9.894e-05,2]
[348849736,1736808634944,-500.0,9.894e-05,2]
[348849737,1736808634954,-500.0,9.894e-05,2]
[348849738,1736808634964,-500.0,9.894e-05,2]
[348849739,1736808634974,-500.0,9.894e-05,2]
[348849740,1736808634983,-500.0,9.894e-05,2]
[348849741,1736808634992,-500.95048896,9.894e-05,2]
[348849742,1736808635002,-500.0,9.894e-05,2]
[348849743,1736808635012,-500.0,9.894e-05,2]
[348849744,1736808635021,-500.0,9.894e-05,2]
[348849745,1736808635031,-500.0,9.894e-05,2]
[348849746,1736808635040,-500.0,9.894e-05,2]
[348849747,1736808635050,-500.0,9.894e-05,2]
[348849748,1736808635060,-500.0,9.894e-05,2]
[348849749,1736808635070,-500.0,9.894e-05,2]
[348849750,1736808635079,-500.0,9.894e-05,2]
[348849751,1736808635089,-500.0,9.894e-05,2]
[348849752,1736808635099,-500.0,9.894e-05,2]
[348849753,1736808635108,-777.48,9.894e-05,2]
[348849754,1736808635118,-500.0,9.894e-05,2]
[348849755,1736808635128,-500.0,9.894e-05,2]
[348849756,1736808635138,-501.25576073,9.894e-05,2]
[348849757,1736808635148,-500.0,9.894e-05,2]
[348849758,1736808635161,-800.2,9.894e-05,2]
[348849759,1736808635170,-500.0,9.894e-05,2]
[348849760,1736808635179,-500.0,9.894e-05,2]
[348849761,1736808635190,-500.0,9.894e-05,2]
[348849762,1736808635201,-500.0,9.894e-05,2]
[348849763,1736808635211,-500.0,9.894e-05,2]
[348849764,1736808635220,-500.0,9.894e-05,2]
[348849765,1736808635230,-500.0,9.894e-05,2]
[348849766,1736808635240,-500.0,9.894e-05,2]
[348849767,1736808635249,-500.0,9.894e-05,2]
[348849768,1736808635258,-500.0,9.894e-05,2]
[348849769,1736808635268,-500.0,9.894e-05,2]
[348849770,1736808635277,-500.0,9.894e-05,2]
[348849771,1736808635286,-500.0,9.894e-05,2]
[348849772,1736808635295,-500.0,9.894e-05,2]
[348849773,1736808635305,-501.63474319,9.894e-05,2]
[348849774,1736808635314,-500.0,9.894e-05,2]
[348849775,1736808635324,-500.0,9.894e-05,2]
[348849776,1736808635333,-500.0,9.894e-05,2]
[348849777,1736808635343,-500.0,9.894e-05,2]
[348849778,1736808635353,-500.0,9.894e-05,2]
[348849779,1736808635363,-500.0,9.894e-05,2]
[348849780,1736808635372,-500.0,9.894e-05,2]
[348849781,1736808635381,-500.0,9.894e-05,2]
[348849782,1736808635391,-500.0,9.894e-05,2]
[348849783,1736808635400,-500.0,9.894e-05,2]
[348849784,1736808635410,-500.0,9.894e-05,2]
[348849785,1736808635419,-500.0,9.894e-05,2]
[348849786,1736808635428,-500.0,9.894e-05,2]
[348849787,1736808635438,-500.0,9.894e-05,2]
[348849788,1736808635448,-948.25,9.894e-05,2]
[348849789,1736808635457,-500.0,9.894e-05,2]
[348849790,1736808635466,-500.0,9.894e-05,2]
[348849791,1736808635476,-500.0,9.894e-05,2]
[348849792,1736808635485,-500.0,9.894e-05,2]
[348849793,1736808635495,-500.0,9.894e-05,2]
[348849794,1736808635505,-200.0,9.894e-05,2]
[348849795,1736808635515,-500.0,9.894e-05,2]
[348849796,1736808635525,-500.0,9.894e-05,2]
[348849797,1736808635534,-881.53,9.894e-05,2]
[348849798,1736808635545,-500.0,9.894e-05,2]
[348849799,1736808635554,-500.0,9.894e-05,2]
[348849800,1736808635563,-500.0,9.894e-05,2]
[348849801,1736808635574,-500.0,9.894e-05,2]
[348849802,1736808635584,-500.0,9.894e-05,2]
[348849803,1736808635594,-500.0,9.894e-05,2]
[348849804,1736808635603,-500.0,9.894e-05,2]
[348849805,1736808635612,-500.0,9.894e-05,2]
[348849806,1736808635621,-500.0,9.894e-05,2]
[348849807,1736808635630,-500.0,9.894e-05,2]
[348849808,1736808635640,-904.06,9.894e-05,2]
[348849809,1736808635649,-502.15532186,9.894e-05,2]
[348849810,1736808635658,-500.0,9.894e-05,2]
[348849811,1736808635667,-500.0,9.894e-05,2]
[348849812,1736808635676,-500.0,9.894e-05,2]
[348849813,1736808635686,-500.0,9.894e-05,2]
[348849814,1736808635695,-500.0,9.894e-05,2]
[348849815,1736808635704,-500.0,9.894e-05,2]
[348849816,1736808635713,-500.0,9.894e-05,2]
[348849817,1736808635723,-500.0,9.894e-05,2]
[348849818,1736808635732,-934.63,9.894e-05,2]
[348849819,1736808635741,-571.82598653,9.894e-05,2]
[348849820,1736808635751,-500.0,9.894e-05,2]
[348849821,1736808635760,-500.0,9.894e-05,2]
[348849822,1736808635769,-500.0,9.894e-05,2]
[348849823,1736808635778,-500.0,9.894e-05,2]
[348849824,1736808635787,-500.0,9.894e-05,2]
[348849825,1736808635796,-500.0,9.894e-05,2]
[348849826,1736808635806,-500.0,9.894e-05,2]
[348849827,1736808635815,-500.0,9.894e-05,2]
[348849828,1736808635825,-500.0,9.894e-05,2]
[348849829,1736808635836,-500.0,9.894e-05,2]
[348849830,1736808635845,-500.0,9.894e-05,2]
[348849831,1736808635855,-912.04,9.894e-05,2]
[348849832,1736808635864,-500.0,9.894e-05,2]
[348849833,1736808635874,-500.0,9.894e-05,2]
[348849834,1736808635884,-264.47353235,9.894e-05,2]
[348849835,1736808635893,-500.0,9.894e-05,2]
[348849836,1736808635903,-500.0,9.894e-05,2]
[348849837,1736808635912,-289.06380984,9.894e-05,2]
[348849838,1736808635922,-500.0,9.894e-05,2]
[348849839,1736808635932,-500.0,9.894e-05,2]
[348849840,1736808635941,-500.0,9.894e-05,2]
[348849841,1736808635952,-500.0,9.894e-05,2]
[348849842,1736808635962,-500.0,9.894e-05,2]
[348849843,1736808635972,-500.0,9.894e-05,2]
[348849844,1736808635981,-898.35,9.894e-05,2]
[348849845,1736808635991,-500.0,9.894e-05,2]
[348849846,1736808636000,-500.0,9.894e-05,2]
[348849847,1736808636010,-500.0,9.894e-05,2]
[348849848,1736808636019,-500.0,9.894e-05,2]
[348849849,1736808636028,-500.0,9.894e-05,2]
[348849850,1736808636038,-500.0,9.894e-05,2]
[348849851,1736808636047,-154.37869016,9.894e-05,2]
[348849852,1736808636056,-803.22,9.894e-05,2]
[348849853,1736808636066,-500.0,9.894e-05,2]